[Event "GER-ch Youth U16w 2019"]
[Site "Willingen"]
[Date "2019.06.12"]
[Round "6.1"]
[White "Bardorz, Jana"]
[Black "Rothenberg, Nina"]
[Result "1/2-1/2"]
[ECO "C02"]
[WhiteElo "1769"]
[BlackElo "1653"]
[Annotator "NA"]
[PlyCount "61"]
[EventDate "2019.06.07"]
[EventType "swiss"]
[EventRounds "9"]
[EventCountry "GER"]
[SourceTitle "playchess.com"]
[Source "ChessBase"]
[SourceQuality "1"]
[TimeControl "40/5400+30:1800+30"]

1. e4 {[%emt 0:00:00]} e6 {[%emt 0:00:00]} 2. d4 {[%emt 0:00:00]} d5 {[%emt 0:00:00]} 3. e5 {[%emt 0:00:00]} c5 {[%emt 0:00:00]} 4. c3 {[%emt 0:00:00]} Nc6 {[%emt 0:00:00]} 5. Nf3 {[%emt 0:00:00]} Qb6 {[%emt 0:00:00]} 6. a3 {[%emt 0:00:16]} f6 {[%emt 0:00:08]} 7. b4 {[%emt 0:08:47]} c4 {[%emt 0:02:59]} 8. Be3 {[%emt 0:14:16]} Qd8 {[%emt 0:04:05]} 9. Nbd2 {[%emt 0:04:14]} fxe5 {[%emt 0:03:32]} 10. Nxe5 {[%emt 0:01:12]} Nf6 {[%emt 0:02:55]} 11. f4 {[%emt 0:03:33]} Bd6 {[%emt 0:05:44]} 12. Be2 {[%emt 0:02:13]} O-O {[%emt 0:02:00]} 13. O-O {[%emt 0:01:40]} Bd7 {[%emt 0:10:52]} 14. g4 {[%emt 0:07:33]} Ne7 {[%emt 0:05:06]} 15. Qe1 {[%emt 0:04:29]} Be8 {[%emt 0:05:24]} 16. Qg3 {[%emt 0:06:43]} Bg6 {[%emt 0:04:57]} 17. Nxg6 {[%emt 0:05:07]} Nxg6 {[%emt 0:00:41]} 18. g5 {[%emt 0:02:46]} Ne8 {[%emt 0:03:36]} 19. Bg4 {[%emt 0:04:02]} Nc7 {[%emt 0:01:33]} 20. Rf2 {[%emt 0:01:46]} Ne7 {[%emt 0:02:12]} 21. Nf3 {[%emt 0:02:06]} Nf5 {[%emt 0:02:53]} 22. Bxf5 {[%emt 0:00:11]} Rxf5 {[%emt 0:00:55]} 23. Nh4 {[%emt 0:00:23]} Rf8 {[%emt 0:01:58]} 24. Qg4 {[%emt 0:02:04]} g6 {[%emt 0:03:16]} 25. Nf3 {[%emt 0:02:12]} Qe7 {[%emt 0:01:02]} 26. h4 {[%emt 0:01:10]} Ne8 {[%emt 0:03:21]} 27. Raf1 {[%emt 0:02:50]} Ng7 {[%emt 0:01:28]} 28. Ne5 {[%emt 0:00:50]} Bxe5 {[%emt 0:01:28]} 29. fxe5 {[%emt 0:01:17]} Nf5 {[%emt 0:00:52]} 30. Bd2 {[%emt 0:00:44]} Kg7 {[%emt 0:03:39]} 31. h5 {[%emt 0:03:09] normal} 1/2-1/2

[Event "GER-ch Youth U16w 2019"]
[Site "Willingen"]
[Date "2019.06.12"]
[Round "6.2"]
[White "Fock, Amina"]
[Black "Basovskiy, Jana"]
[Result "1-0"]
[ECO "B23"]
[WhiteElo "1723"]
[BlackElo "1761"]
[Annotator "NA"]
[PlyCount "111"]
[EventDate "2019.06.07"]
[EventType "swiss"]
[EventRounds "9"]
[EventCountry "GER"]
[SourceTitle "playchess.com"]
[Source "ChessBase"]
[SourceQuality "1"]
[TimeControl "40/5400+30:1800+30"]

1. e4 {[%emt 0:00:00]} c5 {[%emt 0:00:00]} 2. Nc3 {[%emt 0:00:00]} e6 {[%emt 0:00:00]} 3. Nge2 {[%emt 0:00:00]} Nc6 {[%emt 0:00:00]} 4. g3 {[%emt 0:00:00]} Nf6 {[%emt 0:00:54]} 5. Bg2 {[%emt 0:00:07]} Be7 {[%emt 0:00:18]} 6. O-O {[%emt 0:00:10]} O-O {[%emt 0:00:16]} 7. d4 {[%emt 0:00:15]} cxd4 {[%emt 0:00:26]} 8. Nxd4 {[%emt 0:00:10]} a6 {[%emt 0:01:32]} 9. Bf4 {[%emt 0:01:36]} d6 {[%emt 0:12:06]} 10. Nxc6 {[%emt 0:04:01]} bxc6 {[%emt 0:00:51]} 11. e5 {[%emt 0:00:31]} Nd5 {[%emt 0:00:48]} 12. exd6 {[%emt 0:01:00]} Bxd6 {[%emt 0:00:06]} 13. Bxd6 {[%emt 0:01:42]} Qxd6 {[%emt 0:00:18]} 14. Ne4 {[%emt 0:02:47]} Qb4 {[%emt 0:06:54]} 15. b3 {[%emt 0:03:00]} Bd7 {[%emt 0:16:28]} 16. c4 {[%emt 0:03:54]} Nb6 {[%emt 0:00:04]} 17. a3 {[%emt 0:04:20]} Qe7 {[%emt 0:00:52]} 18. Qd4 {[%emt 0:01:02]} Rfb8 {[%emt 0:11:45]} 19. Nc5 {[%emt 0:07:01]} Be8 {[%emt 0:01:21]} 20. b4 {[%emt 0:02:27]} Ra7 {[%emt 0:05:14]} 21. Rfd1 {[%emt 0:07:55]} a5 {[%emt 0:04:23]} 22. Qc3 {[%emt 0:02:12]} axb4 {[%emt 0:01:59]} 23. axb4 {[%emt 0:00:08]} Rba8 {[%emt 0:02:19]} 24. Rxa7 {[%emt 0:06:41]} Rxa7 {[%emt 0:01:10]} 25. Nd3 {[%emt 0:03:23]} f6 {[%emt 0:10:01]} 26. Qd4 {[%emt 0:04:20]} Nc8 {[%emt 0:07:11]} 27. Nc5 {[%emt 0:00:37]} Kf7 {[%emt 0:03:56]} 28. Bh3 {[%emt 0:03:21]} e5 {[%emt 0:02:02]} 29. Qd3 {[%emt 0:00:47]} Nb6 {[%emt 0:03:32]} 30. Qxh7 {[%emt 0:02:00]} Bd7 {[%emt 0:00:32]} 31. Bxd7 {[%emt 0:07:20]} Nxd7 {[%emt 0:00:17]} 32. Rxd7 {[%emt 0:00:23]} Rxd7 {[%emt 0:00:09]} 33. Nxd7 {[%emt 0:00:05]} Qxd7 {[%emt 0:00:05]} 34. Qc2 {[%emt 0:00:16]} Qd4 {[%emt 0:01:21]} 35. Qb3 {[%emt 0:02:20]} Qe4 {[%emt 0:04:02]} 36. Qc3 {[%emt 0:08:09]} Qb1+ {[%emt 0:00:26]} 37. Kg2 {[%emt 0:00:34]} Qe4+ {[%emt 0:00:07]} 38. Kf1 {[%emt 0:00:22]} Qh1+ {[%emt 0:02:02]} 39. Ke2 {[%emt 0:00:11]} Qxh2 {[%emt 0:00:38]} 40. Qf3 {[%emt 0:00:15]} Qh7 {[%emt 0:00:33]} 41. Qxc6 {[%emt 0:33:05]} Qc2+ {[%emt 0:30:06]} 42. Kf1 {[%emt 0:00:07]} Qb1+ {[%emt 0:00:45]} 43. Kg2 {[%emt 0:01:48]} Qxb4 {[%emt 0:00:11]} 44. Qd5+ {[%emt 0:00:12]} Ke7 {[%emt 0:00:46]} 45. c5 {[%emt 0:03:11]} Qb8 {[%emt 0:00:00]} 46. Qc6 {[%emt 0:00:00]} Qb1 {[%emt 0:00:00]} 47. Qd6+ {[%emt 0:00:00]} Ke8 {[%emt 0:00:00]} 48. Qd5 {[%emt 0:00:00]} Ke7 {[%emt 0:00:00]} 49. c6 {[%emt 0:00:00]} Qf5 {[%emt 0:00:00]} 50. c7 {[%emt 0:00:00]} Qc8 {[%emt 0:00:00]} 51. Qc6 {[%emt 0:00:00]} Kf7 {[%emt 0:00:00]} 52. f3 {[%emt 0:00:00]} Ke7 {[%emt 0:00:00]} 53. Kf2 {[%emt 0:00:00]} Kf7 {[%emt 0:00:00]} 54. Ke3 {[%emt 0:00:00]} Ke7 {[%emt 0:00:00]} 55. Ke4 {[%emt 0:00:00]} g6 {[%emt 0:00:00]} 56. g4 {[%emt 0:00:00] normal} 1-0

[Event "GER-ch Youth U16w 2019"]
[Site "Willingen"]
[Date "2019.06.12"]
[Round "6.3"]
[White "Glinzner, Alva"]
[Black "Muedder, Melanie"]
[Result "1/2-1/2"]
[ECO "B20"]
[WhiteElo "1833"]
[BlackElo "1912"]
[Annotator "NA"]
[PlyCount "84"]
[EventDate "2019.06.07"]
[EventType "swiss"]
[EventRounds "9"]
[EventCountry "GER"]
[SourceTitle "playchess.com"]
[Source "ChessBase"]
[SourceQuality "1"]
[TimeControl "40/5400+30:1800+30"]

1. e4 {[%emt 0:00:00]} c5 {[%emt 0:00:00]} 2. d3 {[%emt 0:00:00]} Nc6 {[%emt 0:00:00]} 3. f4 {[%emt 0:00:00]} g6 {[%emt 0:00:08]} 4. Nf3 {[%emt 0:00:00]} Bg7 {[%emt 0:00:12]} 5. Be2 {[%emt 0:00:10]} e6 {[%emt 0:00:38]} 6. O-O {[%emt 0:00:15]} Nge7 {[%emt 0:00:27]} 7. c3 {[%emt 0:00:20]} O-O {[%emt 0:00:38]} 8. Na3 {[%emt 0:00:51]} d5 {[%emt 0:01:55]} 9. Qe1 {[%emt 0:00:52]} b6 {[%emt 0:06:52]} 10. Nc2 {[%emt 0:02:09]} Ba6 {[%emt 0:02:04]} 11. Bd2 {[%emt 0:06:03]} Qc7 {[%emt 0:07:34]} 12. Rd1 {[%emt 0:02:02]} Rad8 {[%emt 0:02:10]} 13. e5 {[%emt 0:12:53]} d4 {[%emt 0:28:34]} 14. Ng5 {[%emt 0:16:16]} c4 15. Qg3 {[%emt 0:01:07]} Nf5 {[%emt 0:09:23]} 16. Qh3 {[%emt 0:00:30]} h6 {[%emt 0:00:51]} 17. Ne4 {[%emt 0:00:29]} cxd3 {[%emt 0:05:05]} 18. Bxd3 {[%emt 0:00:19]} Bxd3 {[%emt 0:01:43]} 19. Qxd3 {[%emt 0:00:20]} dxc3 {[%emt 0:00:22]} 20. Qxc3 {[%emt 0:00:10]} Qb7 {[%emt 0:00:59]} 21. Qf3 {[%emt 0:09:38]} Kh8 {[%emt 0:08:15]} 22. Bc3 {[%emt 0:03:01]} Nce7 {[%emt 0:03:48]} 23. Nd4 {[%emt 0:08:56]} Nxd4 {[%emt 0:02:41]} 24. Bxd4 {[%emt 0:00:18]} Nf5 {[%emt 0:00:31]} 25. Bf2 {[%emt 0:03:32]} Qa6 {[%emt 0:01:04]} 26. a3 {[%emt 0:01:43]} Qa4 {[%emt 0:03:59]} 27. b4 {[%emt 0:07:12]} Qa6 {[%emt 0:04:14]} 28. g4 {[%emt 0:06:32]} Ne7 {[%emt 0:00:28]} 29. Nd6 {[%emt 0:01:03]} Nd5 {[%emt 0:01:00]} 30. Bg3 {[%emt 0:04:58]} f6 {[%emt 0:02:11]} 31. b5 {[%emt 0:04:20]} Qa4 {[%emt 0:00:56]} 32. Qd3 {[%emt 0:07:25]} fxe5 {[%emt 0:02:10]} 33. fxe5 {[%emt 0:01:10]} Kh7 {[%emt 0:01:41]} 34. h3 {[%emt 0:00:32]} Rd7 {[%emt 0:01:56]} 35. Rc1 {[%emt 0:01:07]} Rxf1+ {[%emt 0:01:09]} 36. Kxf1 {[%emt 0:00:47]} Rc7 {[%emt 0:00:19]} 37. Rxc7 {[%emt 0:00:25]} Nxc7 {[%emt 0:00:17]} 38. Kf2 {[%emt 0:00:53]} a6 {[%emt 0:02:05]} 39. bxa6 {[%emt 0:00:23]} Nxa6 {[%emt 0:00:15]} 40. Nc4 {[%emt 0:00:48]} Nc5 {[%emt 0:00:37]} 41. Qe2 {[%emt 0:01:08]} b5 {[%emt 0:05:45]} 42. Nd6 {[%emt 0:00:31]} Qxa3 {[%emt 0:03:08] normal} 1/2-1/2

[Event "GER-ch Youth U16w 2019"]
[Site "Willingen"]
[Date "2019.06.12"]
[Round "6.4"]
[White "Berelowitsch, Dana"]
[Black "Brunner, Sophia"]
[Result "1-0"]
[ECO "C11"]
[WhiteElo "1753"]
[BlackElo "1839"]
[Annotator "NA"]
[PlyCount "83"]
[EventDate "2019.06.07"]
[EventType "swiss"]
[EventRounds "9"]
[EventCountry "GER"]
[SourceTitle "playchess.com"]
[Source "ChessBase"]
[SourceQuality "1"]
[TimeControl "40/5400+30:1800+30"]

1. e4 {[%emt 0:00:00]} e6 {[%emt 0:00:00]} 2. d4 {[%emt 0:00:00]} d5 {[%emt 0:00:00]} 3. Nc3 {[%emt 0:00:00]} Nf6 {[%emt 0:00:00]} 4. e5 {[%emt 0:00:00]} Nfd7 {[%emt 0:00:04]} 5. f4 {[%emt 0:00:10]} c5 {[%emt 0:00:26]} 6. Nf3 {[%emt 0:00:25]} Nc6 {[%emt 0:00:10]} 7. Be3 {[%emt 0:01:12]} a6 {[%emt 0:00:33]} 8. Be2 {[%emt 0:01:05]} b5 {[%emt 0:01:23]} 9. O-O {[%emt 0:04:07]} c4 {[%emt 0:06:15]} 10. f5 {[%emt 0:02:01]} b4 {[%emt 0:01:28]} 11. fxe6 {[%emt 0:01:11]} fxe6 {[%emt 0:00:11]} 12. Ng5 {[%emt 0:10:34]} Ndxe5 {[%emt 0:19:00]} 13. dxe5 {[%emt 0:02:00]} Nxe5 {[%emt 0:00:07]} 14. Na4 {[%emt 0:02:45]} Be7 {[%emt 0:03:02]} 15. Nf3 {[%emt 0:06:02]} Nxf3+ {[%emt 0:05:23]} 16. Bxf3 {[%emt 0:05:16]} O-O {[%emt 0:07:40]} 17. Nb6 {[%emt 0:04:33]} Rb8 {[%emt 0:00:21]} 18. Nxc8 {[%emt 0:00:36]} Rxc8 {[%emt 0:00:23]} 19. Bg4 {[%emt 0:01:37]} Qd6 {[%emt 0:00:59]} 20. Rxf8+ {[%emt 0:03:06]} Rxf8 {[%emt 0:00:13]} 21. Qd2 {[%emt 0:05:16]} e5 {[%emt 0:07:20]} 22. c3 {[%emt 0:04:09]} bxc3 {[%emt 0:05:31]} 23. bxc3 {[%emt 0:00:26]} Bf6 {[%emt 0:02:34]} 24. Rd1 {[%emt 0:03:57]} Rd8 {[%emt 0:00:54]} 25. Be2 {[%emt 0:03:32]} Qe6 {[%emt 0:02:15]} 26. Bg5 {[%emt 0:13:44]} d4 {[%emt 0:09:56]} 27. Bxf6 {[%emt 0:02:20]} gxf6 {[%emt 0:00:46]} 28. Re1 {[%emt 0:06:43]} Rd7 {[%emt 0:08:48]} 29. Bf3 {[%emt 0:05:53]} d3 {[%emt 0:06:40]} 30. Be4 {[%emt 0:01:49]} Rf7 {[%emt 0:02:42]} 31. Rf1 {[%emt 0:03:28]} Kg7 {[%emt 0:03:53]} 32. Bf5 {[%emt 0:02:45]} Qb6+ {[%emt 0:01:14]} 33. Kh1 {[%emt 0:00:40]} Rb7 {[%emt 0:02:07]} 34. h3 {[%emt 0:01:03]} Re7 {[%emt 0:01:26]} 35. Be4 {[%emt 0:00:52]} a5 {[%emt 0:00:55]} 36. Rf5 {[%emt 0:01:11]} a4 {[%emt 0:01:31]} 37. Rh5 {[%emt 0:00:35]} Kg8 {[%emt 0:01:21]} 38. Qh6 {[%emt 0:01:09]} Qb1+ {[%emt 0:00:35]} 39. Kh2 {[%emt 0:00:01]} d2 {[%emt 0:00:35]} 40. Bd5+ {[%emt 0:01:08]} Rf7 {[%emt 0:00:32]} 41. Bxf7+ {[%emt 0:30:33]} Kxf7 {[%emt 0:30:08]} 42. Qxd2 {[%emt 0:00:18] normal} 1-0

[Event "GER-ch Youth U16w 2019"]
[Site "Willingen"]
[Date "2019.06.12"]
[Round "6.5"]
[White "Stowicek, Yara Mathilda"]
[Black "Rudolph, Eva"]
[Result "1/2-1/2"]
[ECO "B01"]
[WhiteElo "1692"]
[BlackElo "1786"]
[Annotator "NA"]
[PlyCount "90"]
[EventDate "2019.06.07"]
[EventType "swiss"]
[EventRounds "9"]
[EventCountry "GER"]
[SourceTitle "playchess.com"]
[Source "ChessBase"]
[SourceQuality "1"]
[TimeControl "40/5400+30:1800+30"]

1. e4 {[%emt 0:00:00]} d5 {[%emt 0:00:00]} 2. exd5 {[%emt 0:00:00]} Qxd5 {[%emt 0:00:00]} 3. Nc3 {[%emt 0:00:22]} Qd8 {[%emt 0:00:00]} 4. d4 {[%emt 0:00:35]} Nf6 {[%emt 0:00:00]} 5. Bc4 {[%emt 0:00:58]} Bg4 {[%emt 0:00:42]} 6. Nge2 {[%emt 0:04:03]} e6 {[%emt 0:01:00]} 7. O-O {[%emt 0:01:10]} c6 {[%emt 0:01:15]} 8. Re1 {[%emt 0:04:21]} Be7 {[%emt 0:01:10]} 9. Bb3 {[%emt 0:03:35]} O-O {[%emt 0:03:29]} 10. h3 {[%emt 0:03:11]} Bxe2 {[%emt 0:00:17]} 11. Nxe2 {[%emt 0:00:39]} Nbd7 {[%emt 0:02:15]} 12. c3 {[%emt 0:01:08]} Nb6 {[%emt 0:02:53]} 13. Bc2 {[%emt 0:02:46]} Nbd5 {[%emt 0:04:17]} 14. Qd3 {[%emt 0:02:19]} Qc7 {[%emt 0:03:37]} 15. a3 {[%emt 0:05:18]} Rfd8 {[%emt 0:04:04]} 16. g4 {[%emt 0:09:36]} g6 {[%emt 0:05:49]} 17. Qf3 {[%emt 0:01:21]} Kg7 {[%emt 0:05:09]} 18. c4 {[%emt 0:06:33]} Nb6 {[%emt 0:02:09]} 19. b3 {[%emt 0:01:00]} Nbd7 {[%emt 0:06:47]} 20. Bb2 {[%emt 0:04:01]} Kg8 {[%emt 0:03:09]} 21. Ng3 {[%emt 0:03:06]} Bf8 {[%emt 0:04:20]} 22. Rad1 {[%emt 0:05:09]} Bg7 {[%emt 0:02:49]} 23. h4 {[%emt 0:01:00]} b5 {[%emt 0:06:12]} 24. g5 {[%emt 0:05:07]} Ne8 {[%emt 0:01:45]} 25. h5 {[%emt 0:01:16]} Nd6 {[%emt 0:04:48]} 26. Bd3 {[%emt 0:02:56]} bxc4 {[%emt 0:04:06]} 27. bxc4 {[%emt 0:00:47]} Nf5 {[%emt 0:05:46]} 28. Nxf5 {[%emt 0:03:29]} exf5 {[%emt 0:01:45]} 29. Kg2 {[%emt 0:02:19]} Re8 {[%emt 0:04:15]} 30. Rh1 {[%emt 0:01:36]} Nc5 {[%emt 0:07:53]} 31. Bc2 {[%emt 0:02:58]} Ne4 {[%emt 0:02:44]} 32. Bxe4 {[%emt 0:02:10]} fxe4 {[%emt 0:00:06]} 33. Qh3 {[%emt 0:00:32]} Rab8 {[%emt 0:07:24]} 34. Bc1 {[%emt 0:02:13]} Qd6 {[%emt 0:00:43]} 35. d5 {[%emt 0:02:12]} cxd5 {[%emt 0:00:30]} 36. cxd5 {[%emt 0:03:43]} Rb5 {[%emt 0:00:34]} 37. hxg6 {[%emt 0:00:44]} hxg6 {[%emt 0:00:48]} 38. a4 {[%emt 0:00:28]} Rxd5 {[%emt 0:00:24]} 39. Rxd5 {[%emt 0:01:39]} Qxd5 {[%emt 0:00:38]} 40. Qh7+ {[%emt 0:00:40]} Kf8 {[%emt 0:00:02]} 41. Ba3+ {[%emt 0:30:17]} Re7 {[%emt 0:30:16]} 42. Bxe7+ {[%emt 0:01:59]} Kxe7 {[%emt 0:00:02]} 43. Qxg7 {[%emt 0:00:55]} Qxg5+ {[%emt 0:01:57]} 44. Kf1 {[%emt 0:03:21]} Qc1+ {[%emt 0:00:09]} 45. Kg2 {[%emt 0:00:18]} Qg5+ {[%emt 0:00:07] normal} 1/2-1/2

[Event "GER-ch Youth U16w 2019"]
[Site "Willingen"]
[Date "2019.06.12"]
[Round "6.6"]
[White "Meijerink, Inken"]
[Black "Bui, Ngoc Han Julia"]
[Result "1/2-1/2"]
[ECO "A16"]
[WhiteElo "1681"]
[BlackElo "1973"]
[Annotator "NA"]
[PlyCount "109"]
[EventDate "2019.06.07"]
[EventType "swiss"]
[EventRounds "9"]
[EventCountry "GER"]
[SourceTitle "playchess.com"]
[Source "ChessBase"]
[SourceQuality "1"]
[TimeControl "40/5400+30:1800+30"]

1. c4 {[%emt 0:00:00]} Nf6 {[%emt 0:00:41]} 2. Nc3 {[%emt 0:00:00]} g6 {[%emt 0:03:06]} 3. g3 {[%emt 0:00:36]} d5 {[%emt 0:01:41]} 4. cxd5 {[%emt 0:00:26]} Nxd5 {[%emt 0:00:05]} 5. Bg2 {[%emt 0:00:15]} Nb6 {[%emt 0:00:29]} 6. Nf3 {[%emt 0:00:39]} Bg7 {[%emt 0:00:31]} 7. O-O {[%emt 0:00:38]} O-O {[%emt 0:00:54]} 8. d3 {[%emt 0:01:34]} Nc6 {[%emt 0:04:52]} 9. Be3 {[%emt 0:01:45]} Be6 {[%emt 0:02:31]} 10. Qd2 {[%emt 0:02:39]} Re8 {[%emt 0:04:50]} 11. Bh6 {[%emt 0:03:08]} Bh8 {[%emt 0:04:31]} 12. Rac1 {[%emt 0:04:48]} f6 {[%emt 0:08:47]} 13. Be3 {[%emt 0:05:15]} Nd5 {[%emt 0:08:49]} 14. Nxd5 {[%emt 0:03:10]} Bxd5 {[%emt 0:00:42]} 15. b3 {[%emt 0:00:28]} e5 {[%emt 0:03:34]} 16. Ne1 {[%emt 0:00:38]} Bxg2 {[%emt 0:05:20]} 17. Nxg2 {[%emt 0:00:15]} Qd7 {[%emt 0:03:38]} 18. f4 {[%emt 0:02:02]} e4 {[%emt 0:01:51]} 19. Rfd1 {[%emt 0:08:57]} Rad8 {[%emt 0:08:12]} 20. Qc2 {[%emt 0:02:34]} exd3 {[%emt 0:05:26]} 21. Rxd3 {[%emt 0:00:30]} Qf7 {[%emt 0:01:07]} 22. Rxd8 {[%emt 0:05:00]} Rxd8 {[%emt 0:00:18]} 23. Bf2 {[%emt 0:00:38]} f5 {[%emt 0:02:40]} 24. e4 {[%emt 0:03:28]} fxe4 {[%emt 0:02:05]} 25. Qxe4 {[%emt 0:00:21]} Bg7 {[%emt 0:08:21]} 26. Re1 {[%emt 0:05:20]} Rd2 {[%emt 0:03:03]} 27. Re2 {[%emt 0:01:23]} Rxe2 {[%emt 0:00:45]} 28. Qxe2 {[%emt 0:00:08]} a6 {[%emt 0:03:18]} 29. Ne1 {[%emt 0:02:03]} Bf8 {[%emt 0:04:24]} 30. Nf3 {[%emt 0:01:07]} Qd5 {[%emt 0:01:28]} 31. Ng5 {[%emt 0:06:37]} Nd4 {[%emt 0:02:07]} 32. Bxd4 {[%emt 0:02:15]} Qxd4+ {[%emt 0:00:01]} 33. Qf2 {[%emt 0:00:17]} Qxf2+ {[%emt 0:01:27]} 34. Kxf2 {[%emt 0:00:06]} h6 {[%emt 0:00:55]} 35. Ne6 {[%emt 0:00:33]} Bd6 {[%emt 0:00:23]} 36. Kf3 {[%emt 0:00:45]} b5 {[%emt 0:02:15]} 37. g4 {[%emt 0:01:35]} Kf7 {[%emt 0:00:32]} 38. Nd8+ {[%emt 0:00:48]} Kf6 {[%emt 0:00:40]} 39. Nc6 {[%emt 0:00:53]} g5 {[%emt 0:01:29]} 40. fxg5+ {[%emt 0:01:36]} Kxg5 {[%emt 0:00:43]} 41. Nb8 {[%emt 0:32:14]} a5 {[%emt 0:08:10]} 42. Nc6 {[%emt 0:00:00]} a4 {[%emt 0:00:30]} 43. Nd4 {[%emt 0:00:00]} axb3 {[%emt 0:01:13]} 44. axb3 {[%emt 0:00:00]} b4 {[%emt 0:01:46]} 45. h3 {[%emt 0:00:00]} Be5 {[%emt 0:07:46]} 46. Nf5 {[%emt 0:00:00]} c5 {[%emt 0:04:09]} 47. h4+ {[%emt 0:00:00]} Kg6 {[%emt 0:00:08]} 48. Ne3 {[%emt 0:00:00]} Bf6 {[%emt 0:00:53]} 49. Kg3 {[%emt 0:00:00]} Be5+ {[%emt 0:01:06]} 50. Kf3 {[%emt 0:00:00]} Bc3 {[%emt 0:01:22]} 51. Ke4 {[%emt 0:00:00]} Bd4 {[%emt 0:02:16]} 52. Nd5 {[%emt 0:00:00]} Bf2 {[%emt 0:00:30]} 53. Nf4+ {[%emt 0:00:00]} Kf6 {[%emt 0:00:39]} 54. Nd3 {[%emt 0:00:00]} Bxh4 {[%emt 0:00:37]} 55. Nxc5 {[%emt 0:00:00] normal Ke5+} 1/2-1/2

[Event "GER-ch Youth U16w 2019"]
[Site "Willingen"]
[Date "2019.06.12"]
[Round "6.7"]
[White "Klemke, Kassandra"]
[Black "Khamenya, Vitalia"]
[Result "0-1"]
[ECO "C47"]
[WhiteElo "1662"]
[BlackElo "1877"]
[Annotator "NA"]
[PlyCount "39"]
[EventDate "2019.06.07"]
[EventType "swiss"]
[EventRounds "9"]
[EventCountry "GER"]
[SourceTitle "playchess.com"]
[Source "ChessBase"]
[SourceQuality "1"]
[TimeControl "40/5400+30:1800+30"]

1. e4 {[%emt 0:00:00]} e5 {[%emt 0:00:00]} 2. Nf3 {[%emt 0:00:00]} Nc6 {[%emt 0:00:00]} 3. Nc3 {[%emt 0:00:00]} Nf6 {[%emt 0:00:00]} 4. d4 {[%emt 0:00:00]} Bb4 {[%emt 0:00:00]} 5. Bg5 {[%emt 0:08:01]} h6 {[%emt 0:03:31]} 6. Bxf6 {[%emt 0:00:22]} Qxf6 {[%emt 0:00:15]} 7. dxe5 {[%emt 0:04:19]} Nxe5 {[%emt 0:00:29]} 8. Nxe5 {[%emt 0:00:25]} Qxe5 {[%emt 0:00:41]} 9. Qf3 {[%emt 0:02:39]} d5 {[%emt 0:05:49]} 10. O-O-O {[%emt 0:00:42]} Qg5+ {[%emt 0:12:00]} 11. Kb1 {[%emt 0:04:50]} Bg4 {[%emt 0:01:13]} 12. Rxd5 {[%emt 0:00:18]} Bxf3 {[%emt 0:00:42]} 13. Rxg5 {[%emt 0:00:08]} hxg5 {[%emt 0:00:36]} 14. gxf3 {[%emt 0:00:14]} O-O-O {[%emt 0:03:27]} 15. Bd3 {[%emt 0:02:16]} Bxc3 {[%emt 0:01:41]} 16. bxc3 {[%emt 0:00:05]} Rh3 {[%emt 0:00:21]} 17. Be2 {[%emt 0:02:55]} Rd2 {[%emt 0:00:59]} 18. Bc4 {[%emt 0:01:48]} Rxf3 {[%emt 0:00:49]} 19. h4 {[%emt 0:01:10]} g4 {[%emt 0:33:16]} 20. Rg1 {[%emt 0:03:38] normal} 0-1

[Event "GER-ch Youth U16w 2019"]
[Site "Willingen"]
[Date "2019.06.12"]
[Round "6.8"]
[White "Sokolowski, Judith"]
[Black "Wagner, Victoria"]
[Result "1/2-1/2"]
[ECO "B22"]
[WhiteElo "1749"]
[BlackElo "1808"]
[Annotator "NA"]
[PlyCount "137"]
[EventDate "2019.06.07"]
[EventType "swiss"]
[EventRounds "9"]
[EventCountry "GER"]
[SourceTitle "playchess.com"]
[Source "ChessBase"]
[SourceQuality "1"]
[TimeControl "40/5400+30:1800+30"]

1. e4 {[%emt 0:00:00]} c5 {[%emt 0:00:00]} 2. c3 {[%emt 0:00:00]} Nf6 {[%emt 0:00:00]} 3. e5 {[%emt 0:00:00]} Nd5 {[%emt 0:00:00]} 4. d4 {[%emt 0:00:00]} cxd4 {[%emt 0:00:14]} 5. cxd4 {[%emt 0:00:00]} Nc6 {[%emt 0:01:19]} 6. Nf3 {[%emt 0:00:26]} d6 {[%emt 0:02:51]} 7. Bc4 {[%emt 0:02:41]} Nb6 {[%emt 0:02:39]} 8. Bb5 {[%emt 0:08:22]} e6 {[%emt 0:05:38]} 9. Bxc6+ {[%emt 0:10:08]} bxc6 {[%emt 0:00:06]} 10. O-O {[%emt 0:01:45]} Be7 {[%emt 0:03:06]} 11. exd6 {[%emt 0:01:31]} Qxd6 {[%emt 0:01:38]} 12. Nc3 {[%emt 0:01:14]} O-O {[%emt 0:02:04]} 13. Re1 {[%emt 0:10:52]} Rd8 {[%emt 0:04:17]} 14. Qc2 {[%emt 0:03:14]} h6 {[%emt 0:05:54]} 15. Qe4 {[%emt 0:09:16]} Nd5 {[%emt 0:05:27]} 16. Ne5 {[%emt 0:04:37]} Bb7 {[%emt 0:06:56]} 17. Qf3 {[%emt 0:11:32]} Nf6 {[%emt 0:05:02]} 18. Qg3 {[%emt 0:03:58]} Kf8 {[%emt 0:13:16]} 19. Be3 {[%emt 0:03:07]} Qb8 {[%emt 0:06:12]} 20. Rad1 {[%emt 0:06:10]} Bd6 {[%emt 0:02:45]} 21. Bc1 {[%emt 0:03:21]} Nd7 {[%emt 0:07:50]} 22. Bf4 {[%emt 0:03:57]} Nxe5 {[%emt 0:04:00]} 23. dxe5 {[%emt 0:01:39]} Bb4 {[%emt 0:02:57]} 24. Qh3 {[%emt 0:02:26]} Qc7 {[%emt 0:04:22]} 25. a3 {[%emt 0:03:56]} Be7 {[%emt 0:04:13]} 26. Ne4 {[%emt 0:01:45]} c5 {[%emt 0:02:28]} 27. Nd6 {[%emt 0:02:55]} Bxd6 {[%emt 0:01:59]} 28. exd6 {[%emt 0:00:20]} Qc6 {[%emt 0:01:36]} 29. Rd3 {[%emt 0:01:25]} Bc8 {[%emt 0:02:06]} 30. Qh5 {[%emt 0:01:33]} Bb7 {[%emt 0:00:22]} 31. Rg3 {[%emt 0:00:24]} Rxd6 {[%emt 0:01:27]} 32. Bxd6+ {[%emt 0:00:29]} Qxd6 {[%emt 0:00:04]} 33. Rd1 {[%emt 0:00:30]} Qe7 {[%emt 0:00:41]} 34. Qe5 {[%emt 0:00:50]} f6 {[%emt 0:00:59]} 35. Qc3 {[%emt 0:00:44]} Kf7 {[%emt 0:00:53]} 36. Rgd3 {[%emt 0:00:24]} Bc6 {[%emt 0:00:22]} 37. h3 {[%emt 0:00:42]} Rc8 {[%emt 0:00:37]} 38. Qa5 {[%emt 0:00:58]} Bd5 {[%emt 0:00:25]} 39. Qd2 {[%emt 0:00:50]} Qb7 {[%emt 0:00:46]} 40. Qc3 {[%emt 0:00:37]} Kg8 {[%emt 0:01:11]} 41. Rg3 {[%emt 0:02:27]} Kh8 {[%emt 0:01:36]} 42. Rd2 {[%emt 0:03:21]} Qf7 {[%emt 0:01:23]} 43. Qa5 {[%emt 0:01:09]} Qe7 {[%emt 0:01:51]} 44. Qa6 {[%emt 0:01:27]} Rc6 {[%emt 0:00:41]} 45. Qe2 {[%emt 0:01:00]} Qf7 {[%emt 0:01:11]} 46. Rc2 {[%emt 0:00:33]} Qe7 {[%emt 0:00:22]} 47. Rd3 {[%emt 0:02:35]} Qf7 {[%emt 0:01:03]} 48. Rdc3 {[%emt 0:01:13]} Qe7 {[%emt 0:00:25]} 49. Qe3 {[%emt 0:00:39]} c4 {[%emt 0:00:34]} 50. b3 {[%emt 0:02:46]} cxb3 {[%emt 0:07:37]} 51. Rxc6 {[%emt 0:00:22]} bxc2 {[%emt 0:00:11]} 52. Rxc2 {[%emt 0:01:36]} Qb7 {[%emt 0:00:13]} 53. Qc5 {[%emt 0:03:37]} Kh7 {[%emt 0:03:55]} 54. f3 {[%emt 0:02:36]} Qb3 {[%emt 0:02:20]} 55. Rc1 {[%emt 0:02:02]} Qb2 {[%emt 0:03:08]} 56. Qc2+ {[%emt 0:01:46]} Qxc2 {[%emt 0:00:06]} 57. Rxc2 {[%emt 0:00:08]} a5 {[%emt 0:00:04]} 58. Kf2 {[%emt 0:01:27]} a4 {[%emt 0:00:09]} 59. Ke3 {[%emt 0:00:30]} Kg6 {[%emt 0:00:11]} 60. Rc5 {[%emt 0:01:23]} Kf7 {[%emt 0:01:09]} 61. Kd4 {[%emt 0:00:41]} Bb3 {[%emt 0:00:28]} 62. Kc3 {[%emt 0:00:31]} Ke7 {[%emt 0:01:42]} 63. Rc7+ {[%emt 0:00:20]} Kf8 {[%emt 0:00:08]} 64. Kb4 {[%emt 0:00:15]} f5 {[%emt 0:00:59]} 65. Ra7 {[%emt 0:02:26]} h5 {[%emt 0:01:45]} 66. Rxa4 {[%emt 0:01:00]} Bxa4 {[%emt 0:00:12]} 67. Kxa4 {[%emt 0:00:03]} e5 {[%emt 0:00:50]} 68. Kb4 {[%emt 0:00:13]} g5 {[%emt 0:00:43]} 69. Kc5 {[%emt 0:01:11] normal} 1/2-1/2